fUSD/lending_fUSD_20250127
["ID","MTS","AMOUNT","RATE_DAILY","PERIOD"]
[350516496,1737940239203,-500.0,0.00010988,2]
[350516498,1737940239213,-500.0,0.00010988,2]
[350516500,1737940239223,-242.256876,0.00010988,2]
[350516502,1737940239232,-500.0,0.00010988,2]
[350516504,1737940239241,-500.0,0.00010988,2]
[350516506,1737940239249,-500.0,0.00010988,2]
[350516508,1737940239258,-370.87057537,0.00010988,2]
[350516510,1737940239267,-500.0,0.00010988,2]
[350516512,1737940239276,-500.0,0.00010988,2]
[350516514,1737940239285,-500.0,0.00010988,2]
[350516516,1737940239294,-500.0,0.00010988,2]
[350516518,1737940239303,-505.91180571,0.00010988,2]
[350516520,1737940239312,-500.0,0.00010988,2]
[350516522,1737940239320,-500.0,0.00010988,2]
[350516524,1737940239330,-500.0,0.00010988,2]
[350516526,1737940239338,-500.0,0.00010988,2]
[350516528,1737940239347,-500.0,0.00010988,2]
[350516530,1737940239356,-500.0,0.00010988,2]
[350516532,1737940239365,-500.0,0.00010988,2]
[350516534,1737940239374,-500.0,0.00010988,2]
[350516536,1737940239383,-500.0,0.00010988,2]
[350516538,1737940239393,-500.0,0.00010988,2]
[350516540,1737940239401,-506.28113641,0.00010989,2]
[350516542,1737940239411,-500.0,0.00010989,2]
[350516544,1737940239422,-500.0,0.00010989,2]
[350516545,1737940239432,-500.0,0.00010989,2]
[350516547,1737940239441,-500.0,0.00010989,2]
[350516549,1737940239451,-500.0,0.00010989,2]
[350516551,1737940239464,-500.0,0.00010989,2]
[350516553,1737940239473,-500.0,0.00010989,2]
[350516555,1737940239482,-500.0,0.00010989,2]
[350516557,1737940239492,-500.0,0.00010989,2]
[350516559,1737940239502,-500.0,0.00010989,2]
[350516561,1737940239512,-500.0,0.00010989,2]
[350516563,1737940239521,-500.0,0.00010989,2]
[350516565,1737940239530,-500.0,0.00010989,2]
[350516567,1737940239540,-500.0,0.00010989,2]
[350516569,1737940239549,-500.0,0.00010989,2]
[350516571,1737940239558,-500.0,0.00010989,2]
[350516573,1737940239567,-500.0,0.00010989,2]
[350516575,1737940239577,-500.0,0.00010989,2]
[350516577,1737940239587,-500.0,0.00010989,2]
[350516580,1737940239597,-500.0,0.00010989,2]
[350516582,1737940239606,-500.0,0.00010989,2]
[350516584,1737940239616,-500.0,0.00010989,2]
[350516585,1737940239625,-500.0,0.00010989,2]
[350516588,1737940239634,-500.0,0.00010989,2]
[350516589,1737940239644,-500.0,0.00010989,2]
[350516591,1737940239654,-500.0,0.00010989,2]
[350516593,1737940239664,-500.0,0.00010989,2]
[350516595,1737940239673,-2000.0,0.00011,2]
[350516597,1737940239682,-1000.0,0.00011,2]
[350516599,1737940239692,-1000.0,0.00011,2]
[350516601,1737940239701,-1000.0,0.00011,2]
[350516603,1737940239711,-1000.0,0.00011,2]
[350516605,1737940239720,-1000.0,0.00011,2]
[350516607,1737940239729,-1000.0,0.00011,2]
[350516609,1737940239739,-1000.0,0.00011,2]
[350516611,1737940239749,-608.75,0.00011093,2]
[350516613,1737940239761,-500.0,0.00011093,2]
[350516615,1737940239770,-500.0,0.00011093,2]
[350516617,1737940239780,-500.0,0.00011093,2]
[350516620,1737940239789,-500.0,0.00011093,2]
[350516622,1737940239798,-500.0,0.00011093,2]
[350516624,1737940239808,-500.0,0.00011093,2]
[350516627,1737940239822,-500.0,0.00011093,2]
[350516629,1737940239831,-500.0,0.00011093,2]
[350516631,1737940239840,-500.0,0.00011093,2]
[350516633,1737940239849,-500.0,0.00011093,2]
[350516635,1737940239861,-500.0,0.00011093,2]
[350516637,1737940239870,-500.0,0.00011093,2]
[350516639,1737940239880,-500.0,0.00011093,2]
[350516641,1737940239889,-206.65597037,0.00011093,2]
[350516643,1737940239899,-500.0,0.00011093,2]
[350516646,1737940239908,-500.0,0.00011093,2]
[350516648,1737940239919,-500.0,0.00011093,2]
[350516650,1737940239929,-555.95291863,0.00011094,2]
[350516652,1737940239938,-640.13218415,0.00011094,2]
[350516654,1737940239948,-500.0,0.00011094,2]
[350516656,1737940239957,-221.8439145,0.00011094,2]
[350516658,1737940239966,-400.15361427,0.00011094,2]
[350516660,1737940239975,-500.0,0.00011094,2]
[350516662,1737940239985,-496.81284004,0.00011094,2]
[350516664,1737940239994,-500.0,0.00011094,2]
[350516666,1737940240003,-500.0,0.00011094,2]
[350516668,1737940240012,-500.0,0.00011094,2]
[350516670,1737940240021,-500.0,0.00011094,2]
[350516672,1737940240031,-500.0,0.00011094,2]
[350516674,1737940240041,-500.0,0.00011094,2]
[350516676,1737940240050,-500.0,0.00011094,2]
[350516678,1737940240060,-500.0,0.00011094,2]
[350516680,1737940240070,-500.0,0.00011094,2]
[350516682,1737940240079,-500.0,0.00011094,2]
[350516684,1737940240088,-500.0,0.00011094,2]
[350516686,1737940240097,-500.0,0.00011094,2]
[350516688,1737940240107,-500.0,0.00011094,2]
[350516690,1737940240117,-500.0,0.00011094,2]
[350516692,1737940240126,-500.0,0.00011094,2]
[350516694,1737940240136,-500.0,0.00011095,2]
[350516696,1737940240145,-500.0,0.00011095,2]
[350516698,1737940240155,-500.0,0.00011095,2]
[350516700,1737940240168,-500.0,0.00011095,2]
[350516702,1737940240178,-500.0,0.00011095,2]
[350516704,1737940240187,-500.0,0.00011095,2]
[350516706,1737940240197,-544.90216503,0.00011095,2]
[350516708,1737940240207,-459.37132251,0.00011095,2]
[350516710,1737940240216,-500.0,0.00011095,2]
[350516711,1737940240225,-161.64451612,0.00011095,2]
[350516713,1737940240235,-500.0,0.00011095,2]
[350516715,1737940240245,-500.0,0.00011095,2]
[350516717,1737940240254,-162.49996921,0.00011099,2]
[350516719,1737940240263,-162.49996917,0.00011099,2]
[350516721,1737940240273,-556.31047946,0.00011107,2]
[350516723,1737940240282,-162.49996917,0.00011114,2]
[350516725,1737940240292,-162.49996917,0.00011226,2]
[350516727,1737940240301,-565.21472125,0.00011256,2]
[350516729,1737940240310,-556.31047946,0.00011314,2]
[350516731,1737940240320,-162.49996917,0.00011338,2]
[350516733,1737940240329,-5000.0,0.00011407,2]
[350516735,1737940240338,-162.49996917,0.00011451,2]
[350516737,1737940240347,-875.55,0.00011477,2]
[350516739,1737940240357,-156.42924986,0.00011496,2]
[350516741,1737940240366,-2751.0,0.00011507,2]
[350516743,1737940240375,-556.31047946,0.00011521,2]
[350516745,1737940240385,-162.49996917,0.00011563,2]
[350516748,1737940240395,-1000.0,0.00011594,2]
[350516749,1737940240404,-500.0,0.00011595,2]
[350516751,1737940240414,-575.06,0.00011595,2]
[350516754,1737940240426,-500.0,0.00011595,2]
[350516756,1737940240435,-609.98,0.00011595,2]
[350516758,1737940240445,-164.158082,0.00011595,2]
[350516760,1737940240454,-500.0,0.00011595,2]
[350516762,1737940240464,-803.12,0.00011595,2]
[350516764,1737940240474,-500.0,0.00011595,2]
[350516766,1737940240483,-967.71,0.00011595,2]
[350516768,1737940240492,-737.99,0.00011595,2]
[350516770,1737940240501,-500.0,0.00011595,2]
[350516772,1737940240511,-500.0,0.00011595,2]
[350516774,1737940240520,-500.0,0.00011595,2]
[350516776,1737940240530,-500.0,0.00011595,2]
[350516777,1737940240539,-500.0,0.00011595,2]
[350516779,1737940240548,-500.0,0.00011595,2]
[350516781,1737940240557,-500.0,0.00011595,2]
[350516783,1737940240566,-500.0,0.00011595,2]
[350516785,1737940240576,-500.0,0.00011595,2]
[350516787,1737940240585,-493.83,0.00011595,2]
[350516789,1737940240595,-500.0,0.00011595,2]
[350516791,1737940240605,-500.0,0.00011595,2]
[350516793,1737940240614,-570.55,0.00011595,2]
[350516795,1737940240623,-503.01,0.00011595,2]
[350516797,1737940240633,-543.55,0.00011595,2]
[350516799,1737940240642,-500.0,0.00011595,2]
[350516801,1737940240651,-500.0,0.00011595,2]
[350516803,1737940240660,-500.0,0.00011595,2]
[350516805,1737940240672,-723.5,0.00011595,2]
[350516807,1737940240682,-500.0,0.00011595,2]
[350516810,1737940240691,-713.37,0.00011595,2]
[350516831,1737940240886,-500.0,0.00011595,2]
[350516832,1737940240897,-759.98,0.00011595,2]
[350516834,1737940240907,-500.0,0.00011595,2]
[350516835,1737940240917,-500.0,0.00011595,2]
[350516836,1737940240926,-500.0,0.00011595,2]
[350516837,1737940240935,-500.0,0.00011595,2]
[350516838,1737940240944,-500.0,0.00011595,2]
[350516839,1737940240955,-683.29,0.00011595,2]
[350516840,1737940240967,-500.0,0.00011595,2]
[350516841,1737940240976,-500.0,0.00011595,2]
[350516842,1737940240986,-500.0,0.00011595,2]
[350516843,1737940240995,-500.0,0.00011595,2]
[350516844,1737940241004,-500.0,0.00011595,2]
[350516845,1737940241013,-500.0,0.00011595,2]
[350516846,1737940241022,-500.0,0.00011595,2]
[350516847,1737940241031,-500.0,0.00011595,2]
[350516848,1737940241040,-1106.31,0.00011595,2]
[350516849,1737940241049,-500.0,0.00011595,2]
[350516850,1737940241058,-500.0,0.00011595,2]
[350516851,1737940241067,-500.0,0.00011595,2]
[350516853,1737940241076,-500.0,0.00011595,2]
[350516855,1737940241085,-500.0,0.00011595,2]
[350516857,1737940241095,-500.0,0.00011595,2]
[350516859,1737940241105,-500.0,0.00011595,2]
[350516861,1737940241115,-500.0,0.00011595,2]
[350516862,1737940241124,-500.0,0.00011595,2]
[350516863,1737940241133,-500.0,0.00011595,2]
[350516864,1737940241145,-600.49,0.00011595,2]
[350516865,1737940241155,-500.0,0.00011595,2]
[350516866,1737940241165,-246.19980462,0.00011595,2]
[350516867,1737940241191,-166.65408344,0.00011595,2]
[350516868,1737940241202,-500.0,0.00011595,2]
[350516869,1737940241211,-166.436749,0.00011595,2]
[350516870,1737940241222,-68.76697663,0.00011595,2]
[350516871,1737940241234,-431.23302337,0.00011595,2]
[350516872,1737940241243,-500.0,0.00011595,2]
[350516873,1737940241253,-87.26697663,0.00011595,2]
[350516874,1737940241265,-412.73302337,0.00011595,2]
[350516875,1737940241275,-500.0,0.00011595,2]
[350516876,1737940241284,-500.0,0.00011595,2]
[350516877,1737940241293,-500.0,0.00011595,2]
[350516878,1737940241302,-500.0,0.00011595,2]
[350516879,1737940241311,-500.0,0.00011595,2]
[350516880,1737940241321,-500.0,0.00011595,2]
[350516881,1737940241330,-500.0,0.00011595,2]
[350516882,1737940241340,-500.0,0.00011595,2]
[350516883,1737940241349,-500.0,0.00011595,2]
[350516884,1737940241359,-500.0,0.00011595,2]
[350516885,1737940241368,-500.0,0.00011595,2]
[350516886,1737940241377,-325.5444367,0.00011595,2]
[350516887,1737940241387,-500.0,0.00011595,2]
[350516888,1737940241396,-484.98849058,0.00011595,2]
[350516889,1737940241406,-500.0,0.00011595,2]
[350516890,1737940241418,-500.0,0.00011596,2]
[350516891,1737940241428,-500.0,0.00011596,2]
[350516892,1737940241437,-500.0,0.00011596,2]
[350516893,1737940241446,-500.0,0.00011596,2]
[350516894,1737940241456,-500.0,0.00011596,2]
[350516895,1737940241465,-500.0,0.00011596,2]
[350516896,1737940241474,-500.0,0.00011596,2]
[350516897,1737940241483,-500.0,0.00011596,2]
[350516898,1737940241493,-589.29,0.00011596,2]
[350516899,1737940241502,-500.0,0.00011596,2]
[350516900,1737940241511,-500.0,0.00011596,2]
[350516901,1737940241520,-500.0,0.00011596,2]
[350516902,1737940241529,-549.27,0.00011596,2]
[350516903,1737940241538,-500.0,0.00011596,2]
[350516904,1737940241548,-500.0,0.00011596,2]
[350516905,1737940241557,-500.0,0.00011596,2]
[350516906,1737940241567,-500.0,0.00011596,2]
[350516907,1737940241577,-500.0,0.00011596,2]
[350516908,1737940241587,-556.60280487,0.00011596,2]
[350516909,1737940241596,-500.0,0.00011596,2]
[350516910,1737940241607,-500.0,0.00011596,2]
[350516911,1737940241616,-500.0,0.00011596,2]
[350516912,1737940241625,-500.0,0.00011596,2]
[350516913,1737940241635,-500.0,0.00011596,2]
[350516914,1737940241644,-530.14989772,0.00011596,2]
[350516915,1737940241654,-500.0,0.00011596,2]
[350516916,1737940241663,-242.85290002,0.00011596,2]
[350516917,1737940241674,-500.0,0.00011596,2]
[350516918,1737940241687,-500.0,0.00011596,2]
[350516919,1737940241697,-500.0,0.00011596,2]
[350516920,1737940241706,-500.0,0.00011596,2]
[350516921,1737940241715,-500.0,0.00011596,2]
[350516922,1737940241724,-500.0,0.00011596,2]
[350516923,1737940241733,-626.15348309,0.00011596,2]
[350516924,1737940241741,-500.0,0.00011596,2]
[350516925,1737940241751,-500.0,0.00011596,2]
[350516926,1737940241760,-500.0,0.00011596,2]
[350516927,1737940241771,-170.95048312,0.00011596,2]
[350516928,1737940241780,-500.0,0.00011596,2]
[350516929,1737940241789,-382.76480744,0.00011596,2]
[350516930,1737940241798,-500.0,0.00011596,2]
[350516931,1737940241812,-307.66655996,0.00011596,2]
[350516932,1737940241824,-192.33344004,0.00011596,2]
[350516933,1737940241834,-136.66655986,0.00011596,2]
[350516934,1737940241846,-363.33344014,0.00011596,2]
[350516935,1737940241856,-500.0,0.00011596,2]
[350516936,1737940241865,-500.0,0.00011596,2]
[350516937,1737940241874,-199.0450684,0.00011596,2]
[350516938,1737940241883,-500.0,0.00011596,2]
[350516939,1737940241893,-500.0,0.00011596,2]
[350516940,1737940241902,-500.0,0.00011596,2]
[350516941,1737940241911,-500.0,0.00011596,2]
[350516942,1737940241921,-500.0,0.00011596,2]
[350516943,1737940241930,-500.0,0.00011596,2]
[350516944,1737940241939,-500.0,0.00011596,2]
[350516945,1737940241949,-500.0,0.00011596,2]
[350516946,1737940241958,-500.0,0.00011596,2]
[350516947,1737940241968,-500.0,0.00011596,2]
[350516948,1737940241978,-500.0,0.00011596,2]
[350516949,1737940241987,-210.39555764,0.00011596,2]
[350516950,1737940241996,-500.0,0.00011596,2]
[350516951,1737940242006,-500.0,0.00011596,2]
[350516952,1737940242016,-500.0,0.00011596,2]
[350516953,1737940242026,-500.0,0.00011596,2]
[350516954,1737940242036,-500.0,0.00011596,2]
[350516955,1737940242045,-500.0,0.00011596,2]
[350516956,1737940242055,-500.0,0.00011596,2]
[350516957,1737940242064,-500.0,0.00011596,2]
[350516958,1737940242074,-500.0,0.00011596,2]
[350516959,1737940242084,-507.57022789,0.00011596,2]
[350516960,1737940242093,-500.0,0.00011596,2]
[350516961,1737940242103,-500.0,0.00011596,2]
[350516962,1737940242112,-507.61,0.00011596,2]
[350516963,1737940242122,-500.0,0.00011596,2]
[350516964,1737940242130,-500.0,0.00011596,2]
[350516965,1737940242139,-500.0,0.00011596,2]
[350516966,1737940242149,-500.0,0.00011596,2]
[350516967,1737940242158,-500.0,0.00011596,2]
[350516968,1737940242167,-500.0,0.00011596,2]
[350516969,1737940242177,-500.0,0.00011596,2]
[350516970,1737940242186,-310.282092,0.00011596,2]
[350516971,1737940242195,-530.60900309,0.00011596,2]
[350516972,1737940242204,-500.0,0.00011596,2]
[350516973,1737940242213,-500.0,0.00011596,2]
[350516974,1737940242222,-500.0,0.00011596,2]
[350516975,1737940242231,-500.0,0.00011596,2]
[350516976,1737940242240,-428.46781434,0.00011596,2]
[350516977,1737940242253,-71.53218566,0.00011596,2]
[350516978,1737940242262,-500.0,0.00011596,2]
[350516979,1737940242272,-268.46559083,0.00011596,2]
[350516980,1737940242284,-349.70440917,0.00011596,2]
[350516981,1737940242293,-500.0,0.00011596,2]
[350516982,1737940242302,-500.0,0.00011596,2]
[350516983,1737940242312,-500.0,0.00011596,2]
[350516984,1737940242321,-168.05671943,0.00011596,2]
[350516985,1737940242333,-128.67535597,0.00011596,2]
[350516986,1737940242343,-500.0,0.00011596,2]
[350516987,1737940242352,-500.0,0.00011596,2]
[350516988,1737940242361,-500.0,0.00011596,2]
[350516989,1737940242370,-500.0,0.00011596,2]
[350516990,1737940242379,-500.0,0.00011596,2]
[350516991,1737940242390,-500.0,0.00011596,2]
[350516992,1737940242399,-500.0,0.00011596,2]
[350516993,1737940242408,-500.0,0.00011596,2]
[350516994,1737940242418,-500.0,0.00011596,2]
[350516995,1737940242427,-500.0,0.00011596,2]
[350516996,1737940242437,-500.0,0.00011596,2]
[350516997,1737940242447,-500.0,0.00011596,2]
[350516998,1737940242456,-500.0,0.00011596,2]
[350516999,1737940242465,-500.0,0.00011596,2]
[350517000,1737940242475,-500.0,0.00011596,2]
[350517001,1737940242484,-500.0,0.00011596,2]
[350517002,1737940242494,-500.0,0.00011596,2]
[350517003,1737940242504,-500.0,0.00011596,2]
[350517004,1737940242515,-500.0,0.00011596,2]
[350517005,1737940242524,-500.0,0.00011596,2]
[350517006,1737940242534,-629.46,0.00011596,2]
[350517007,1737940242544,-500.0,0.00011596,2]
[350517008,1737940242554,-500.0,0.00011596,2]
[350517009,1737940242564,-399.55958633,0.00011596,2]
[350517010,1737940242573,-928.72,0.00011596,2]
[350517011,1737940242583,-500.0,0.00011596,2]
[350517012,1737940242592,-500.0,0.00011596,2]
[350517013,1737940242602,-500.0,0.00011596,2]
[350517014,1737940242611,-500.0,0.00011596,2]
[350517015,1737940242620,-500.0,0.00011596,2]
[350517016,1737940242630,-350.17176754,0.00011596,2]
[350517017,1737940242639,-500.0,0.00011596,2]
[350517018,1737940242650,-500.0,0.00011596,2]
[350517019,1737940242660,-500.0,0.00011596,2]
[350517020,1737940242669,-500.0,0.00011596,2]
[350517021,1737940242678,-500.0,0.00011596,2]
[350517022,1737940242688,-500.0,0.00011596,2]
[350517023,1737940242697,-500.0,0.00011596,2]
[350517024,1737940242707,-500.0,0.00011596,2]
[350517025,1737940242716,-500.0,0.00011596,2]
[350517026,1737940242726,-593.05,0.00011596,2]
[350517027,1737940242735,-500.0,0.00011596,2]
[350517029,1737940242745,-500.0,0.00011596,2]
[350517031,1737940242754,-500.0,0.00011596,2]
[350517032,1737940242764,-500.0,0.00011596,2]
[350517033,1737940242774,-500.0,0.00011596,2]
[350517034,1737940242783,-523.99700762,0.00011596,2]
[350517035,1737940242793,-500.0,0.00011596,2]
[350517036,1737940242802,-500.0,0.00011596,2]
[350517037,1737940242812,-500.0,0.00011596,2]
[350517038,1737940242824,-500.0,0.00011596,2]
[350517039,1737940242835,-500.0,0.00011596,2]
[350517040,1737940242847,-500.0,0.00011596,2]
[350517041,1737940242861,-500.0,0.00011596,2]
[350517042,1737940242871,-500.0,0.00011596,2]
[350517044,1737940242880,-500.0,0.00011596,2]
[350517046,1737940242891,-500.0,0.00011596,2]
[350517047,1737940242903,-500.0,0.00011596,2]
[350517048,1737940242913,-500.0,0.00011596,2]
[350517049,1737940242923,-500.0,0.00011596,2]
[350517050,1737940242934,-500.0,0.00011596,2]
[350517053,1737940242944,-500.0,0.00011596,2]
[350517055,1737940242964,-500.0,0.00011596,2]
[350517059,1737940242976,-500.0,0.00011596,2]
[350517062,1737940242986,-500.0,0.00011596,2]
[350517064,1737940242996,-500.0,0.00011596,2]
[350517066,1737940243006,-500.0,0.00011596,2]
[350517069,1737940243016,-500.0,0.00011596,2]
[350517070,1737940243027,-500.0,0.00011596,2]
[350517072,1737940243040,-500.0,0.00011596,7]
[350517074,1737940243050,-500.0,0.00011597,2]
[350517078,1737940243061,-500.0,0.00011597,2]
[350517079,1737940243071,-500.0,0.00011597,2]
[350517081,1737940243081,-500.0,0.00011597,2]
[350517082,1737940243091,-500.0,0.00011597,2]
[350517083,1737940243101,-500.0,0.00011597,2]
[350517085,1737940243110,-500.0,0.00011597,2]
[350517086,1737940243120,-219.39396545,0.00011597,2]
[350517087,1737940243130,-500.0,0.00011597,2]
[350517088,1737940243140,-500.0,0.00011597,2]
[350517089,1737940243150,-500.0,0.00011597,2]
[350517090,1737940243161,-500.0,0.00011597,2]
[350517091,1737940243172,-500.0,0.00011597,2]
[350517092,1737940243182,-500.0,0.00011597,2]
[350517093,1737940243192,-500.0,0.00011597,2]
[350517094,1737940243203,-500.0,0.00011597,2]
[350517095,1737940243213,-253.91,0.00011598,2]
[350517096,1737940243223,-1000.0,0.000116,2]
[350517097,1737940243233,-204.28245583,0.00011636,2]
[350517098,1737940243243,-500.0,0.00011636,2]
[350517099,1737940243252,-500.0,0.00011636,2]
[350517100,1737940243262,-508.28538993,0.00011636,2]
[350517101,1737940243272,-500.0,0.00011636,2]
[350517102,1737940243282,-430.91672686,0.00011636,2]
[350517103,1737940243291,-500.0,0.00011636,2]
[350517104,1737940243301,-570.48749805,0.00011636,2]
[350517105,1737940243311,-182.43,0.00011636,2]
[350517106,1737940243320,-156.51164362,0.00011636,2]
[350517107,1737940243330,-500.0,0.00011636,2]
[350517108,1737940243339,-500.0,0.00011636,2]
[350517109,1737940243349,-500.0,0.00011636,2]
[350517110,1737940243359,-500.0,0.00011636,2]
[350517111,1737940243369,-500.0,0.00011636,2]
[350517112,1737940243379,-500.0,0.00011636,2]
[350517113,1737940243389,-500.0,0.00011636,2]
[350517114,1737940243398,-500.0,0.00011636,2]
[350517115,1737940243408,-500.0,0.00011636,2]
[350517116,1737940243420,-500.0,0.00011636,2]
[350517117,1737940243430,-1126.62308889,0.00011651,2]
[350517118,1737940243440,-162.49996917,0.00011675,2]
[350517119,1737940243450,-556.31047946,0.00011728,2]
[350517120,1737940243459,-430.87570697,0.00011734,2]
[350517121,1737940243469,-500.0,0.00011772,2]
[350517122,1737940243479,-1400.0,0.00011772,2]
[350517124,1737940243489,-500.0,0.00011787,2]
[350517126,1737940243499,-500.0,0.00011787,2]
[350517128,1737940243508,-577.82000163,0.00011787,2]
[350517130,1737940243518,-500.0,0.00011787,2]
[350517131,1737940243527,-500.0,0.00011787,2]
[350517132,1737940243537,-500.0,0.00011787,2]
[350517134,1737940243547,-162.49996917,0.00011788,2]
[350517136,1737940243556,-628.3185393,0.00011799,2]
[350517138,1737940243566,-418.0965194,0.000118,2]
[350517140,1737940243576,-418.0965194,0.00011811,2]
[350517142,1737940243585,-418.0965194,0.00011822,2]
[350517144,1737940243595,-23252.38837132,0.00011827,2]
[350517146,1737940243605,-2540.1384,0.00011827,2]
[350517148,1737940243615,-1670.18856373,0.00011829,2]
[350517150,1737940243624,-7310.75453916,0.00011829,2]
[350517152,1737940243634,-442.89556612,0.00011829,2]
[350517155,1737940243643,-3560.97733116,0.0001183,2]
[350517157,1737940243653,-2992.7000767,0.00011831,2]
[350517159,1737940243663,-200.0,0.00011832,2]
[350517161,1737940243676,-200.0,0.00011832,2]
[350517163,1737940243686,-1270.0,0.00011833,2]
[350517165,1737940243695,-2020.0,0.00011833,2]
[350517167,1737940243705,-2200.533,0.00011833,2]
[350517169,1737940243715,-538.0,0.00011833,2]
[350517171,1737940243724,-150.0,0.00011833,2]
[350517172,1737940243733,-3987.0,0.00011833,2]
[350517174,1737940243743,-3905.0,0.00011833,2]
[350517177,1737940243754,-150.0,0.00011833,2]
[350517178,1737940243765,-1106.0,0.00011833,2]
[350517180,1737940243775,-442.89556612,0.00011833,2]
[350517183,1737940243786,-418.0965194,0.00011833,2]
[350517184,1737940243796,-25005.71231122,0.00011835,2]
[350517187,1737940243809,-3560.97733116,0.00011838,2]
[350517189,1737940243826,-260.55541461,0.00011838,2]
[350517191,1737940243837,-3560.97733116,0.00011844,2]
[350517193,1737940243848,-418.0965194,0.00011844,2]
[350517195,1737940243861,-2992.7000767,0.00011847,2]
[350517197,1737940243875,-219.12713645,0.0001185,2]
[350517199,1737940243886,-1670.18856373,0.00011851,2]
[350517201,1737940243898,-442.89556612,0.00011851,2]
[350517203,1737940243910,-219.12713645,0.00011851,2]
[350517205,1737940243925,-219.12713645,0.00011851,2]
[350517207,1737940243936,-3492.85,0.00011852,2]
[350517209,1737940243947,-164.663,0.00011852,2]
[350517211,1737940243957,-260.55541461,0.00011852,2]
[350517213,1737940243968,-200.0,0.00011855,2]
[350517215,1737940243979,-418.0965194,0.00011856,2]
[350517218,1737940243990,-26167.4330041,0.00011856,2]
[350517219,1737940244000,-180.67,0.0001186,2]
[350517221,1737940244011,-442.89556612,0.0001186,2]
[350517222,1737940244021,-4620.34293374,0.0001186,2]
[350517223,1737940244032,-200.0,0.00011863,2]
[350517224,1737940244042,-7310.75453916,0.00011864,2]
[350517225,1737940244052,-418.0965194,0.00011867,2]
[350517226,1737940244063,-2992.7000767,0.00011867,2]
[350517227,1737940244073,-4620.34293374,0.00011869,2]
[350517228,1737940244082,-260.55541461,0.00011869,2]
[350517229,1737940244091,-260.55541461,0.0001187,2]
[350517230,1737940244101,-25005.71231122,0.00011871,2]
[350517231,1737940244111,-10314.22527762,0.00011876,2]
[350517232,1737940244126,-15853.20772648,0.00011876,2]
[350517233,1737940244136,-418.0965194,0.00011878,2]
[350517234,1737940244146,-1670.18856373,0.00011878,2]
[350517235,1737940244156,-442.89556612,0.00011884,2]
[350517236,1737940244166,-3560.97733116,0.00011885,2]
[350517237,1737940244181,-2992.7000767,0.00011886,2]
[350517238,1737940244192,-25005.71231122,0.00011887,2]
[350517239,1737940244202,-260.55541461,0.00011888,2]
[350517240,1737940244212,-25005.71231122,0.00011888,2]
[350517241,1737940244223,-418.0965194,0.00011889,2]
[350517242,1737940244232,-219.12713645,0.00011892,2]
[350517243,1737940244243,-7310.75453916,0.00011892,2]
[350517244,1737940244253,-1670.18856373,0.00011893,2]
[350517245,1737940244264,-4620.34293374,0.00011897,2]
[350517246,1737940244274,-200.0,0.00011897,2]
[350517247,1737940244284,-7310.75453916,0.00011898,2]
[350517248,1737940244294,-154.55113955,0.00011899,2]
[350517249,1737940244304,-154.55113955,0.000119,2]
[350517250,1737940244313,-25005.71231122,0.000119,2]
[350517251,1737940244323,-7310.75453916,0.000119,2]